{"text_format":"1","workbook":"xlsx","n_sheets":2,"sheets":["Titulos_Habilitantes","Hoja1"],"not_rendered":{"charts":0,"images":3,"macros":1,"external_links":0,"defined_names":14,"comments":0,"pivot_tables":0},"unopened":[],"bounds":{"document_bytes":16777216,"sheet_cells":100000,"rows_first":2000,"rows_last":500,"rows_between":2000,"halvings":0,"cell_chars":16384,"cell_head_chars":4096},"cells_cut":0,"cells_raw":0,"read":"whole","date_system":"1900"}

{"sheet":"Titulos_Habilitantes","index":0,"n_rows":355,"n_cols":35,"rows_kept":355,"cut":false,"hidden":false,"merged":[[20,0,20,1],[22,0,22,1],[24,0,24,1],[26,0,26,1],[47,0,54,16],[42,9,45,16],[40,7,40,9],[36,0,36,1],[32,0,32,1],[34,0,34,1],[38,3,38,5],[38,7,38,9],[38,11,38,13],[42,5,42,7],[36,3,36,5],[36,7,36,9],[34,3,34,5],[14,0,14,1],[4,0,4,1],[4,2,4,3],[11,3,12,5],[14,3,14,5],[8,3,8,16],[14,11,14,13],[14,15,18,15],[4,11,5,13],[4,14,4,16],[14,7,14,9],[16,7,16,9],[16,0,16,1],[18,0,18,1],[20,7,20,9],[22,7,22,9],[18,7,18,9],[18,11,18,13],[16,3,16,5],[18,3,18,5],[20,3,20,5],[16,11,16,13],[2,29,2,30],[3,29,3,30],[11,7,12,9],[4,29,4,30],[5,29,5,30],[11,11,12,13],[1,7,2,16],[4,8,4,9],[6,2,6,9],[64,8,66,16],[32,15,36,15],[36,11,36,13],[20,15,24,15],[26,15,30,15],[28,11,28,13],[30,11,30,13],[32,11,32,13],[34,11,34,13],[26,11,26,13],[20,11,20,13],[34,7,34,9],[24,11,24,13],[44,5,44,7],[45,5,45,7],[22,11,22,13],[55,0,55,16],[57,0,59,16],[22,3,22,5],[24,3,24,5],[26,7,26,9],[26,3,26,5],[35,3,35,5],[28,3,28,5],[30,3,30,5],[28,7,28,9],[30,7,30,9],[32,7,32,9],[32,3,32,5],[24,7,24,9],[28,0,28,1],[30,0,30,1]]}
[]
[null,null,null,null,null,null,null,"FORMULARIO DECLARACIÓN 1% TRIMESTRAL INGRESOS POSTALES",null,null,null,null,null,null,null,null,null,null,null,2024,"Tercero","Ruc","Razón social"]
[null,null,null,null,null,null,null,null,null,null,null,null,null,null,null,null,null,null,null,null,null,"1792662540001","IN EXPRESS-COURIER S.A.",null,null,null,null,null,null,null,null,null,"PERÍODO","F.VENCIMIENTO","PREFACTOR"]
[null,null,null,null,null,null,null,null,null,null,null,null,null,null,null,null,null,null,null,null,null,"1791959043001","ENTREGAS ESPECIALES ESPENTREGAS S.A.",null,null,null,null,null,null,null,null,null,"I TRIMESTRE","2020-07-31",7.5799999999999999E-3]
["AÑO:",null,2024,null,null,"TRIMESTRE:",null,null,"Tercero",null,null,"FECHA DECLARACIÓN:",null,null,{"$f":"TODAY()","v":"2025-05-22"},null,null,null,null,null,null,"1790546667001","DHL EXPRESS (ECUADOR) S.A.",null,null,null,null,null,null,null,null,null,"II TRIMESTRE","2020-07-31",7.5199999999999998E-3]
[null,null,null,null,null,null,null,null,null,null,null,null,null,null,null,null,null,null,null,null,null,"1791977734001","FLYEXPRESS S.A.",null,null,null,null,null,null,null,null,null,"III TRIMESTRE","2020-10-23",7.5199999999999998E-3]
["RUC",null,null,null,null,null,null,null,null,null,null,null,null,null,null,null,null,null,null,null,null,"0992971746001","GLOBAL INTERPRICE COURIER INTERCOURIER S.A.",null,null,null,null,null,null,null,null,null,"IV TRIMESTRE","2021-01-23",7.0800000000000004E-3]
[null,null,null,null,null,null,null,null,null,null,null,null,null,null,null,null,null,null,null,null,null,"0992325585001","TRANSSKY S.A.",null,null,null,null,null,null,null,null,null,"I TRIMESTRE","2021-04-23",7.0800000000000004E-3]
["RAZON SOCIAL",null,null,{"$f":"VLOOKUP(C7,$V$3:$W$355,2,FALSE)","v":{"$error":"#N/A"}},null,null,null,null,null,null,null,null,null,null,null,null,null,null,null,null,null,"1790823415001","PROVEEDORA DE FLETES INTERNACIONALES Y TRANSPORTE DE CARGA-PROFITCARGO COMPANIA LIMITADA"]
[null,null,null,null,null,null,null,null,null,null,null,null,null,null,null,null,null,null,null,null,null,"1792182859001","BORDOY COURIER Y SERVICIOS S.A."]
[null,null,null,null,null,null,null,null,null,null,null,null,null,null,null,null,null,null,null,null,null,"0190152928001","COSTECUA EXPRESS CIA. LTDA."]
["MES",null,null,"INGRESOS NO POSTALES",null,null,null,"INGRESOS POSTALES",null,null,null,"TOTAL INGRESOS",null,null,null,null,null,null,null,null,null,"1790477339001","WORLD COURIER DEL ECUADOR S.A"]
[null,null,null,null,null,null,null,null,null,null,null,null,null,null,null,null,null,null,null,null,null,"1791770153001","UPS SCS (ECUADOR) S.A.S."]
[null,null,null,null,null,null,null,null,null,null,null,null,null,null,null,null,null,null,null,null,null,"0992669918001","TMALOGISTICS S.A."]
["ENERO",null,null,null,null,null,null,null,null,null,null,{"$f":"D15+H15","v":0},null,null,null,"I TRIM",null,null,null,null,null,"1792021170001","MULTICOURIER CIA LTDA."]
[null,null,null,null,null,null,null,null,null,null,null,null,null,null,null,null,null,null,null,null,null,"1791359240001","GEOMIL GEORGE MILENI S.A."]
["FEBRERO",null,null,null,null,null,null,null,null,null,null,{"$f":"D17+H17","v":0},null,null,null,null,null,null,null,null,null,"1792349052001","SERVICIOS POSTALES INTERNACIONALES ANDINOS POSTANDINOS S.A."]
[null,null,null,null,null,null,null,null,null,null,null,null,null,null,null,null,null,null,null,null,null,"0993023477001","ARGO EXPRESS LOGISTICS ARGOCOURIER CIA LTDA"]
["MARZO",null,null,null,null,null,null,null,null,null,null,{"$f":"D19+H19","v":0},null,null,null,null,null,null,null,null,null,"0690018632001","COOPERATIVA DE TRANSPORTES PATRIA"]
[null,null,null,null,null,null,null,null,null,null,null,null,null,null,null,null,null,null,null,null,null,"0990803749001","COOPERATIVA DE TRANSPORTE LIBERTAD PENINSULAR"]
["ABRIL",null,null,null,null,null,null,null,null,null,null,{"$f":"D21+H21","v":0},null,null,null,"II TRIM",null,null,null,null,null,"0992680164001","GEO & CRIS CARGO SERVICE S.A."]
[null,null,null,null,null,null,null,null,null,null,null,null,null,null,null,null,null,null,null,null,null,"0992354992001","SEPDENTS S.A."]
["MAYO",null,null,null,null,null,null,null,null,null,null,{"$f":"D23+H23","v":0},null,null,null,null,null,null,null,null,null,"1390142230001","DELGADO COURIER CÍA. LTDA."]
[null,null,null,null,null,null,null,null,null,null,null,null,null,null,null,null,null,null,null,null,null,"0991250913001","SUREXPRESS S.A."]
["JUNIO",null,null,null,null,null,null,null,null,null,null,{"$f":"D25+H25","v":0},null,null,null,null,null,null,null,null,null,"1791839498001","AUDICOMER INTERNATIONAL SERVICE S.A."]
[null,null,null,null,null,null,null,null,null,null,null,null,null,null,null,null,null,null,null,null,null,"0992106727001","CORPORACIONES UNIDAS DEL AUSTRO S.A. - CORPUAUSTRO"]
["JULIO",null,null,null,null,null,null,null,null,null,null,{"$f":"D27+H27","v":0},null,null,null,"III TRIM",null,null,null,null,null,"0991146547001","AGENCIA GUAYAQUIL S.A. AGENGUA"]
[null,null,null,null,null,null,null,null,null,null,null,null,null,null,null,null,null,null,null,null,null,"0992130024001","L.G.F. EXPRESS S.A."]
["AGOSTO",null,null,null,null,null,null,null,null,null,null,{"$f":"D29+H29","v":0},null,null,null,null,null,null,null,null,null,"1090053449001","TACA TRANSPORTES ANDINA C.A."]
[null,null,null,null,null,null,null,null,null,null,null,null,null,null,null,null,null,null,null,null,null,"1792725917001","EQUALATIN EXPRESS CIA. LTDA."]
["SEPTIEMBRE",null,null,null,null,null,null,null,null,null,null,{"$f":"D31+H31","v":0},null,null,null,null,null,null,null,null,null,"0690014408001","COOPERATIVA DE TRANSPORTES INTERPROVINCIAL CHIMBORAZO"]
[null,null,null,null,null,null,null,null,null,null,null,null,null,null,null,null,null,null,null,null,null,"1890020085001","COOPERATIVA DE TRANSPORTES Y TURISMO BAÑOS"]
["OCTUBRE",null,null,null,null,null,null,null,null,null,null,{"$f":"D33+H33","v":0},null,null,null,"IV TRIM",null,null,null,null,null,"0190168166001","RAPID SERVICE DE GONZALO APOLO CIA. LTDA."]
[null,null,null,null,null,null,null,null,null,null,null,null,null,null,null,null,null,null,null,null,null,"1090007870001","COOPERATIVA DE TRANSPORTES FLOTA IMBABURA"]
["NOVIEMBRE",null,null,null,null,null,null,null,null,null,null,{"$f":"D35+H35","v":0},null,null,null,null,null,null,null,null,null,"1191700240001","COOPERATIVA DE TRANSPORTES CENTRAL CATAMAYO"]
[null,null,null,null,null,null,null,null,null,null,null,null,null,null,null,null,null,null,null,null,null,"0992217405001","EXPRESITO CARGA S.A. EXCA"]
["DICIEMBRE",null,null,null,null,null,null,null,null,null,null,{"$f":"D37+H37","v":0},null,null,null,null,null,null,null,null,null,"1190006820001","COOPERATIVA DE TRANSPORTES LOJA"]
[null,null,null,null,null,null,null,null,null,null,null,null,null,null,null,null,null,null,null,null,null,"0390029268001","COOPERATIVA DE TRANSPORTE INTERPROVINCIAL RIRCAY"]
["TOTAL",null,null,{"$f":"D37+D35+D33+D31+D29+D27+D25+D23+D21+D19+D17+D15","v":0},null,null,null,{"$f":"H37+H35+H33+H31+H29+H27+H25+H23+H21+H19+H17+H15","v":0},null,null,null,{"$f":"H39+D39","v":0},null,null,null,null,null,null,null,null,null,"0490008578001","COOPERATIVA DE TRANSPORTE INTERPROVINCIAL DE PASAJEROS SAN CRISTÓBAL"]
[null,null,null,null,null,null,null,null,null,null,null,null,null,null,null,null,null,null,null,null,null,"1790042944001","COOPERATIVA DE TRANSPORTES PANAMERICANA INTERNACIONAL"]
["BASE IMPONIBLE",null,null,null,null,null,null,{"$f":"+H39","v":0},null,null,null,null,null,null,null,null,null,null,null,null,null,"0190018911001","COOPERATIVA DE TRANSPORTES TURISMO ORIENTAL"]
[null,null,null,null,null,null,null,null,null,null,null,null,null,null,null,null,null,null,null,null,null,"0190031969001","COOPERATIVA DE TRANSPORTES AZUAY"]
["CONTRIBUCIÓN 1 %",null,null,null,null,{"$f":"+NOTIFICADO*0.01","v":0},null,null,null,"PAGO INMEDIATO OBLIGACIÓN VENCIÓ EL       22-10-2024",null,null,null,null,null,null,null,null,null,null,null,"0790017552001","COOPERATIVA INTERNACIONAL FRONTERIZA ASOCIADA CIFA"]
[null,null,null,null,null,null,null,null,null,null,null,null,null,null,null,null,null,null,null,null,null,"1791740599001","SEPRICARGA CIA. LTDA."]
["INTERESES",null,null,null,null,{"$f":"Hoja1!F18","v":0},null,null,null,null,null,null,null,null,null,null,null,null,null,null,null,"1791312813001","URBANO EXPRESS S.A. RAPIEXX"]
["TOTAL A PAGAR",null,null,null,null,{"$f":"TXTBASECONTRIBUCION+F45","v":0},null,null,null,null,null,null,null,null,null,null,null,null,null,null,null,"1791357396001","TRAMACOEXPRESS CIA. LTDA"]
[null,null,null,null,null,null,null,null,null,null,null,null,null,null,null,null,null,null,null,null,null,"1890042852001","COOPERATIVA DE TRANSPORTES SANTA"]
["FORMAS DE PAGO: Efectivo, cheque certificado y transferencia \n* RAZÓN SOCIAL: MINISTERIO DE TELECOMUNICACIONES Y DE LA SOCIEDAD DE LA INFORMACIÓN \n* R.U.C. Nro. 1768151240001 \n* INSTITUCIÓN FINANCIERA DONDE REALIZARÁ EL PAGO: BANCO DEL PACÍFICO \n* CUENTA CORRIENTE Nro. 7256687",null,null,null,null,null,null,null,null,null,null,null,null,null,null,null,null,null,null,null,null,"0190161226001","KOKO CARGO EXPRESS KOEXPRES S.A."]
[null,null,null,null,null,null,null,null,null,null,null,null,null,null,null,null,null,null,null,null,null,"0690044560001","COOPERATIVA DE TRANSPORTE INTERPROVINCIAL DE PASAJEROS TRANSVENCEDORES"]
[null,null,null,null,null,null,null,null,null,null,null,null,null,null,null,null,null,null,null,null,null,"1390082246001","TRANSPORTES RUTAS CARMENSES S.A."]
[null,null,null,null,null,null,null,null,null,null,null,null,null,null,null,null,null,null,null,null,null,"0690015978001","COOPERATIVA DE TRANSPORTE DE PASAJEROS RIOBAMBA"]
[null,null,null,null,null,null,null,null,null,null,null,null,null,null,null,null,null,null,null,null,null,"0991508139001","EUROENVIO S.A. EUROENSA"]
[null,null,null,null,null,null,null,null,null,null,null,null,null,null,null,null,null,null,null,null,null,"0991476857001","JIMMY´S EXPRESS COURIER S.A. JIMCOURIER"]
[null,null,null,null,null,null,null,null,null,null,null,null,null,null,null,null,null,null,null,null,null,"1890116015001","COOPERATIVA DE TRANSPORTE EXPRESO BAÑOS"]
[null,null,null,null,null,null,null,null,null,null,null,null,null,null,null,null,null,null,null,null,null,"1690017268001","COOPERATIVA DE TRANSPORTE INTERPROVINCIAL DE PASAJEROS TOURIS SAN FRANCISCO ORIENTAL"]
["NO MODIFIQUE EL FORMATO DE LA PLANTILLA, RECUERDE QUE LOS CAMPOS SON NUMÉRICOS Y OBLIGATORIOS.",null,null,null,null,null,null,null,null,null,null,null,null,null,null,null,null,null,null,null,null,"1890006309001","COOPERATIVA DE TRANSPORTES AMBATO"]
[null,null,null,null,null,null,null,null,null,null,null,null,null,null,null,null,null,null,null,null,null,"0590047945001","COOPERATIVA DE TRANSPORTES MACUCHI"]
["*NOTA IMPORTANTE: UNA VEZ REALIZADO EL PAGO NO OLVIDE COMPLETAR SU TRÁMITE EN LA PLATAFORMA www.gob.ec, ACCEDIENDO AL TRÁMITE DECLARACIÓN EN LINEA TRIMESTRAL DE CONTRIBUCIÓN DEL 1% DE LOS INGRESOS FACTURADOS Y PERCIBIDOS POR LOS OPERADORES POSTALES.",null,null,null,null,null,null,null,null,null,null,null,null,null,null,null,null,null,null,null,null,"0790042557001","COOP. INTERPROVINCIAL DE TRANSP. ASOC. CANTONALES TAC"]
[null,null,null,null,null,null,null,null,null,null,null,null,null,null,null,null,null,null,null,null,null,"0991461019001","SOLCOURIER S.A."]
[null,null,null,null,null,null,null,null,null,null,null,null,null,null,null,null,null,null,null,null,null,"0991285679001","SERVIENTREGA ECUADOR S.A."]
[null,null,null,null,null,null,null,null,null,null,null,null,null,null,null,null,null,null,null,null,null,"0992488921001","MELQUISEDEC S.A."]
[null,null,null,null,null,null,null,null,null,null,null,null,null,null,null,null,null,null,null,null,null,"1791408241001","TRANSPORTE INTERNACIONAL CONSOLIDADO Y MARITIMO DE CARGA GONDRAND S.A."]
[null,null,null,null,null,null,null,null,null,null,null,null,null,null,null,null,null,null,null,null,null,"0490013644001","TRANSPORTES VELOTAX NORTE S.A"]
[null,null,null,null,null,null,null,null,null,null,null,null,null,null,null,null,null,null,null,null,null,"0790093135001","OROGUAYAS COURIER S.A."]
[null,null,null,null,null,null,null,null,"Declaro bajo juramento que la información consignada en el presente formulario sobre los ingresos de la operación postal, es correcta, que no he omitido información relevante, que cualquier momento dicha información puede ser verificada",null,null,null,null,null,null,null,null,null,null,null,null,"0190322262001","JOQUIEXPRESS CIA. LTDA."]
[null,null,null,null,null,null,null,null,null,null,null,null,null,null,null,null,null,null,null,null,null,"1792490731001","COMPAÑÍA LOGÍSTICA & SERVICIOS POSTALES QUITO SERVIQUITO S.A."]
[null,null,null,null,null,null,null,null,null,null,null,null,null,null,null,null,null,null,null,null,null,"0190331857001","ZABCARGO CIA. LTDA."]
["FIRMA REPRESENTANTE LEGAL ",null,null,null,null,null,null,null,null,null,null,null,null,null,null,null,null,null,null,null,null,"1390045944001","COOPERATIVA DE TRANSPORTES COACTUR"]
[null,null,null,null,null,null,null,null,null,null,null,null,null,null,null,null,null,null,null,null,null,"1791903013001","SERVICIOS INTEGRALES EN ADUANAS Y TRANSPORTE INTERNACIONAL S.I.A.T.I. CIA. LTDA."]
[null,null,null,null,null,null,null,null,null,null,null,null,null,null,null,null,null,null,null,null,null,"1290056183001","COOPERATIVA DE TRANSPORTE FLOTA BABAHOYO INTERPROVINCIAL"]
[null,null,null,null,null,null,null,null,null,null,null,null,null,null,null,null,null,null,null,null,null,"0190098281001","COMPAÑÍA DE TRANSPORTES SANTA ISABEL DEL VALLE DE YUNGUILLA S.A."]
[null,null,null,null,null,null,null,null,null,null,null,null,null,null,null,null,null,null,null,null,null,"0790053419001","COOPERATIVA DE TRANSPORTES INTERPROVINCIAL RUTAS ORENSES"]
[null,null,null,null,null,null,null,null,null,null,null,null,null,null,null,null,null,null,null,null,null,"0590048097001","COOPERATIVA DE TRANSPORTES INTERPROVINCIAL DE PASAJEROS LA MANA"]
[null,null,null,null,null,null,null,null,null,null,null,null,null,null,null,null,null,null,null,null,null,"1790414973001","COOPERATIVA DE TRANSPORTE FLOR DEL VALLE CAYAMBE"]
[null,null,null,null,null,null,null,null,null,null,null,null,null,null,null,null,null,null,null,null,null,"1490004412001","COOPERATIVA DE TRANSPORTES DE PASAJEROS 16 DE AGOSTO"]
[null,null,null,null,null,null,null,null,null,null,null,null,null,null,null,null,null,null,null,null,null,"0992398159001","AIR TRANS COURRIER S.A. AIRCOUSRSA"]
[null,null,null,null,null,null,null,null,null,null,null,null,null,null,null,null,null,null,null,null,null,"1390146546001","COOPERATIVA DE TRANSPORTE INTERPROVINCIAL DE PASAJEROS RUTAS PORTOVEJENSES"]
[null,null,null,null,null,null,null,null,null,null,null,null,null,null,null,null,null,null,null,null,null,"1990006993001","COOPERATIVA DE TRANSPORTE INTERNACIONAL NAMBIJA"]
[null,null,null,null,null,null,null,null,null,null,null,null,null,null,null,null,null,null,null,null,null,"1790320359001","TRANS-ESMERALDAS INTERNACIONAL TEISA S.A."]
[null,null,null,null,null,null,null,null,null,null,null,null,null,null,null,null,null,null,null,null,null,"1090009016001","COOPERATIVA DE TRANSPORTES OTAVALO"]
[null,null,null,null,null,null,null,null,null,null,null,null,null,null,null,null,null,null,null,null,null,"1890086981001","COOPERATIVA DE TRANSPORTES CITA EXPRESS"]
[null,null,null,null,null,null,null,null,null,null,null,null,null,null,null,null,null,null,null,null,null,"0190007251001","COOPERATIVA  TRANSPORTES  EXPRESS SUCRE"]
[null,null,null,null,null,null,null,null,null,null,null,null,null,null,null,null,null,null,null,null,null,"0190056651001","SUPER TAXIS CUENCA C.A."]
[null,null,null,null,null,null,null,null,null,null,null,null,null,null,null,null,null,null,null,null,null,"1791715845001","LATIN TRAVEL CÍA. LTDA."]
[null,null,null,null,null,null,null,null,null,null,null,null,null,null,null,null,null,null,null,null,null,"0691740633001","ENCOMIENDAS CONDORACITO S.A."]
[null,null,null,null,null,null,null,null,null,null,null,null,null,null,null,null,null,null,null,null,null,"1990010427001","COOPERATIVA DE TRANSPORTE UNIÓN YANZATZA"]
[null,null,null,null,null,null,null,null,null,null,null,null,null,null,null,null,null,null,null,null,null,"0990296820001","COOPERATIVA DE TRANSPORTES DE PASAJEROS VILLAMIL"]
[null,null,null,null,null,null,null,null,null,null,null,null,null,null,null,null,null,null,null,null,null,"1790060896001","COOPERATIVA DE TRANSPORTES ZARACAY"]
[null,null,null,null,null,null,null,null,null,null,null,null,null,null,null,null,null,null,null,null,null,"1791309391001","TRADING EXPRESS CARGO S.C. BALSECA CAZCO S.A."]
[null,null,null,null,null,null,null,null,null,null,null,null,null,null,null,null,null,null,null,null,null,"0391001812001","COOPERATIVA DE TRANSPORTE INTERPROVINCIAL TRONCALEÑA"]
[null,null,null,null,null,null,null,null,null,null,null,null,null,null,null,null,null,null,null,null,null,"1390042678001","COOPERATIVA INTERPROVINCIAL DE TRANSPORTE REALES TAMARINDOS"]
[null,null,null,null,null,null,null,null,null,null,null,null,null,null,null,null,null,null,null,null,null,"1390037860001","COOPERATIVA DE TRANSPORTE INTERPROVINCIAL REINA DEL CAMINO"]
[null,null,null,null,null,null,null,null,null,null,null,null,null,null,null,null,null,null,null,null,null,"1792708478001","MUNDIGROUP S.A."]
[null,null,null,null,null,null,null,null,null,null,null,null,null,null,null,null,null,null,null,null,null,"1792519225001","SERVICIOS DE ENCOMIENDAS MARCELO TAIPE SERVIENCOMET CIA. LTDA."]
[null,null,null,null,null,null,null,null,null,null,null,null,null,null,null,null,null,null,null,null,null,"0391000530001","COOPERATIVA DE TRANSPORTES INTERPROVINCIAL INGAPIRCA"]
[null,null,null,null,null,null,null,null,null,null,null,null,null,null,null,null,null,null,null,null,null,"0992165243001","ROMERO TRANSFER & COURIER S.A."]
[null,null,null,null,null,null,null,null,null,null,null,null,null,null,null,null,null,null,null,null,null,"0190317943001","TENECELA TRAVEL EXPRESS CIA. LTDA."]
[null,null,null,null,null,null,null,null,null,null,null,null,null,null,null,null,null,null,null,null,null,"0992412631001","RIOCARGO EXPRESS S.A."]
[null,null,null,null,null,null,null,null,null,null,null,null,null,null,null,null,null,null,null,null,null,"0190403572001","SEMERIACOURIER S.A."]
[null,null,null,null,null,null,null,null,null,null,null,null,null,null,null,null,null,null,null,null,null,"0290030382001","COOPERATIVA DE TRANSPORTES INTERPROVINCIAL CALUMA"]
[null,null,null,null,null,null,null,null,null,null,null,null,null,null,null,null,null,null,null,null,null,"1190090554001","JETCOURIER CIA. LTDA."]
[null,null,null,null,null,null,null,null,null,null,null,null,null,null,null,null,null,null,null,null,null,"0791799112001","QUICKLASS S A"]
[null,null,null,null,null,null,null,null,null,null,null,null,null,null,null,null,null,null,null,null,null,"1890006783001","COOPERATIVA DE TRANSPORTES TRASANDINA EXPRESS"]
[null,null,null,null,null,null,null,null,null,null,null,null,null,null,null,null,null,null,null,null,null,"1390141374001","TRANSPORTES FENIX TRANSFENIX S.A."]
[null,null,null,null,null,null,null,null,null,null,null,null,null,null,null,null,null,null,null,null,null,"0391001731001","COOPERATIVA DE TRANSPORTE DE PASAJEROS EN BUSES CAÑAR"]
[null,null,null,null,null,null,null,null,null,null,null,null,null,null,null,null,null,null,null,null,null,"1490004331001","COOPERATIVA DE TRANSPORTES MACAS LIMITADA"]
[null,null,null,null,null,null,null,null,null,null,null,null,null,null,null,null,null,null,null,null,null,"1792051053001","GC SERVICIOS CIA. LTDA"]
[null,null,null,null,null,null,null,null,null,null,null,null,null,null,null,null,null,null,null,null,null,"1090061549001","COOPERATIVA DE TRANSPORTES AEROTAXI"]
[null,null,null,null,null,null,null,null,null,null,null,null,null,null,null,null,null,null,null,null,null,"1790485412001","TRANSPORTES PESADOS DEL SUR TRANSPSUR S.A"]
[null,null,null,null,null,null,null,null,null,null,null,null,null,null,null,null,null,null,null,null,null,"0890001912001","COOPERATIVA DE TRANSPORTES DE PASAJEROS DEL PACÍFICO"]
[null,null,null,null,null,null,null,null,null,null,null,null,null,null,null,null,null,null,null,null,null,"0490038663001","COOPERATIVA DE TRANSPORTES ESPEJO"]
[null,null,null,null,null,null,null,null,null,null,null,null,null,null,null,null,null,null,null,null,null,"1802085157001","FREIRE CONSTANTE LAURA TERESA"]
[null,null,null,null,null,null,null,null,null,null,null,null,null,null,null,null,null,null,null,null,null,"1790409619001","COOPERATIVA DE TRANSPORTE JHON FITZGERALD KENNEDY"]
[null,null,null,null,null,null,null,null,null,null,null,null,null,null,null,null,null,null,null,null,null,"1790167720001","COOPERATIVA DE TRANSPORTES OCCIDENTALES"]
[null,null,null,null,null,null,null,null,null,null,null,null,null,null,null,null,null,null,null,null,null,"1190024365001","COOPERATIVA  TRANSPORTE SUR ORIENTE"]
[null,null,null,null,null,null,null,null,null,null,null,null,null,null,null,null,null,null,null,null,null,"0190050858001","TRANSPORTES ORTIZ S.A."]
[null,null,null,null,null,null,null,null,null,null,null,null,null,null,null,null,null,null,null,null,null,"0790082001001","COOPERATIVA DE TRANSPORTE DE PASAJEROS PIÑAS INTERPROVINCIAL"]
[null,null,null,null,null,null,null,null,null,null,null,null,null,null,null,null,null,null,null,null,null,"1790327736001","COOPERATIVA DE TRANSPORTE INTERPROVINCIAL DE PASAJEROS ALOAG"]
[null,null,null,null,null,null,null,null,null,null,null,null,null,null,null,null,null,null,null,null,null,"1390122116001","COOPERATIVA DE TRANSPORTE INTERPROVINCIAL 24 DE SEPTIEMBRE - TRANS PAJAN"]
[null,null,null,null,null,null,null,null,null,null,null,null,null,null,null,null,null,null,null,null,null,"1190081474001","COOPERATIVA DE TRANSPORTES UNIÓN CARIAMANGA"]
[null,null,null,null,null,null,null,null,null,null,null,null,null,null,null,null,null,null,null,null,null,"0991058648001","COOPERATIVA DE TRANSPORTES MARISCAL SUCRE"]
[null,null,null,null,null,null,null,null,null,null,null,null,null,null,null,null,null,null,null,null,null,"1790106063001","COOPERATIVA DE TRANSPORTES ECUADOR"]
[null,null,null,null,null,null,null,null,null,null,null,null,null,null,null,null,null,null,null,null,null,"0790023471001","COOPERATIVA INTERNACIONAL DE TRANSPORTES ECUATORIANO PULLMAN"]
[null,null,null,null,null,null,null,null,null,null,null,null,null,null,null,null,null,null,null,null,null,"1713099974001","BEATRIZ ALEJANDRA ORTIZ MORENO"]
[null,null,null,null,null,null,null,null,null,null,null,null,null,null,null,null,null,null,null,null,null,"0490002650001","COOPERATIVA DE TRANSPORTES PULLMAN CARCHI"]
[null,null,null,null,null,null,null,null,null,null,null,null,null,null,null,null,null,null,null,null,null,"1890066123001","COOPERATIVA DE TRANSPORTES FLOTA PELILEO"]
[null,null,null,null,null,null,null,null,null,null,null,null,null,null,null,null,null,null,null,null,null,"0993052175001","LIBERTY EXPRESS ECUADOR LIBERTYEX S.A."]
[null,null,null,null,null,null,null,null,null,null,null,null,null,null,null,null,null,null,null,null,null,"1690019392001","COOPERATIVA DE TRANSPORTES CENTINELA DEL ORIENTE"]
[null,null,null,null,null,null,null,null,null,null,null,null,null,null,null,null,null,null,null,null,null,"0690075504001","COOPERATIVA DE TRANSPORTES DE PASAJEROS ECUADOR EJECUTIVO"]
[null,null,null,null,null,null,null,null,null,null,null,null,null,null,null,null,null,null,null,null,null,"1390023207001","COOPERATIVA DE TRANSPORTES CARLOS ALBERTO ARAY"]
[null,null,null,null,null,null,null,null,null,null,null,null,null,null,null,null,null,null,null,null,null,"0190300684001","COOPERATIVA DE SERVICIOS DE  TRANSPORTE  RIO PAUTE COOPSERTRARIOPA"]
[null,null,null,null,null,null,null,null,null,null,null,null,null,null,null,null,null,null,null,null,null,"0791771226001","ENCOMIENDAS Y PAQUETERÍA EMPAORO S.A."]
[null,null,null,null,null,null,null,null,null,null,null,null,null,null,null,null,null,null,null,null,null,"0990040443001","TRANSPORTES INTERPROVINCIALES ASOCIADOS TIA S.A."]
[null,null,null,null,null,null,null,null,null,null,null,null,null,null,null,null,null,null,null,null,null,"0791759838001","COURIERCORP CIA LTDA"]
[null,null,null,null,null,null,null,null,null,null,null,null,null,null,null,null,null,null,null,null,null,"1390114490001","COOPERATIVA DE TRANSPORTES EL CARMEN LTDA"]
[null,null,null,null,null,null,null,null,null,null,null,null,null,null,null,null,null,null,null,null,null,"1890080487001","COOPERATIVA DE TRANSPORTES DE PASAJEROS INTERPROVINCIAL 22 DE JULIO"]
[null,null,null,null,null,null,null,null,null,null,null,null,null,null,null,null,null,null,null,null,null,"0390024843001","COOPERATIVA DE TRANSPORTE INTERPROVINCIAL DE PASAJEROS JAHUAY"]
[null,null,null,null,null,null,null,null,null,null,null,null,null,null,null,null,null,null,null,null,null,"0490008500001","COOPERATIVA DE TRANSPORTES EXPRESO TULCAN"]
[null,null,null,null,null,null,null,null,null,null,null,null,null,null,null,null,null,null,null,null,null,"1090006246001","EXPRESO TURISMO DEL NORTE QUIBATUL C.A."]
[null,null,null,null,null,null,null,null,null,null,null,null,null,null,null,null,null,null,null,null,null,"0490038337001","COOPERATIVA DE TRANSPORTES TAX GACELA"]
[null,null,null,null,null,null,null,null,null,null,null,null,null,null,null,null,null,null,null,null,null,"0190352420001","AUSTROPRONTO S.A."]
[null,null,null,null,null,null,null,null,null,null,null,null,null,null,null,null,null,null,null,null,null,"0993062154001","ENCOMIENDAS RUTAS DEL SOL RUTSOL S.A."]
[null,null,null,null,null,null,null,null,null,null,null,null,null,null,null,null,null,null,null,null,null,"0890039316001","COOPERATIVA DE TRANSPORTE DE PASAJEROS INTERPROVINCIAL GILBERTO ZAMBRANO"]
[null,null,null,null,null,null,null,null,null,null,null,null,null,null,null,null,null,null,null,null,null,"1490004447001","COOPERATIVA DE TRANSPORTE DE PASAJEROS CIUDAD DE SUCÚA"]
[null,null,null,null,null,null,null,null,null,null,null,null,null,null,null,null,null,null,null,null,null,"0190018067001","COOPERATIVA DE TRANSPORTE INTERPROVINCIAL PULLMAN VIAJEROS INTERNACIONAL"]
[null,null,null,null,null,null,null,null,null,null,null,null,null,null,null,null,null,null,null,null,null,"0190304434001","COOPERATIVA DE TRANSPORTE INTRAPROVINCIAL SANTA BÁRBARA"]
[null,null,null,null,null,null,null,null,null,null,null,null,null,null,null,null,null,null,null,null,null,"0992640952001","GLOBALCOURIER S.A."]
[null,null,null,null,null,null,null,null,null,null,null,null,null,null,null,null,null,null,null,null,null,"0993115118001","MAFEXPRESS INTERNATIONAL MAFEXINT S.A."]
[null,null,null,null,null,null,null,null,null,null,null,null,null,null,null,null,null,null,null,null,null,"1590016841001","COOPERATIVA DE TRANSPORTE JUMANDY"]
[null,null,null,null,null,null,null,null,null,null,null,null,null,null,null,null,null,null,null,null,null,"1890114446001","COOPERATIVA DE TRANSPORTES AMAZONAS"]
[null,null,null,null,null,null,null,null,null,null,null,null,null,null,null,null,null,null,null,null,null,"1090013439001","COOPERATIVA DE TRANSPORTE LOS LAGOS"]
[null,null,null,null,null,null,null,null,null,null,null,null,null,null,null,null,null,null,null,null,null,"0993106755001","ROL CARGO EXPRESS S.A."]
[null,null,null,null,null,null,null,null,null,null,null,null,null,null,null,null,null,null,null,null,null,"1792699657001","SERVICIOS LOGISTICOS MENA & ASOCIADOS AVANTELOGISTICS CIA.LTDA"]
[null,null,null,null,null,null,null,null,null,null,null,null,null,null,null,null,null,null,null,null,null,"1990005091001","COOPERATIVA DE TRANSPORTES ZAMORA CHINCHIPE"]
[null,null,null,null,null,null,null,null,null,null,null,null,null,null,null,null,null,null,null,null,null,"1792918707001","ARISTCOMCARGO SA"]
[null,null,null,null,null,null,null,null,null,null,null,null,null,null,null,null,null,null,null,null,null,"1790100146001","COOPERATIVA DE TRANSPORTES DE PASAJEROS SANTO DOMINGO"]
[null,null,null,null,null,null,null,null,null,null,null,null,null,null,null,null,null,null,null,null,null,"0190156001001","CONFIEXPRESS CIA. LTDA."]
[null,null,null,null,null,null,null,null,null,null,null,null,null,null,null,null,null,null,null,null,null,"0690023849001","COOPERATIVA DE TRANSPORTES CTA"]
[null,null,null,null,null,null,null,null,null,null,null,null,null,null,null,null,null,null,null,null,null,"0993021490001","TRIANA EXPRESS S.A. "]
[null,null,null,null,null,null,null,null,null,null,null,null,null,null,null,null,null,null,null,null,null,"0993047813001","CITYCOURIER "]
[null,null,null,null,null,null,null,null,null,null,null,null,null,null,null,null,null,null,null,null,null,"1290037219001","COOPERATIVA DE TRANSPORTES INTERPROVINCIAL SUCRE"]
[null,null,null,null,null,null,null,null,null,null,null,null,null,null,null,null,null,null,null,null,null,"1091763032001","COMPAÑIA DE CARGA Y ENCOMIENDAS INNVATRANS S.A."]
[null,null,null,null,null,null,null,null,null,null,null,null,null,null,null,null,null,null,null,null,null,"1792992532001","PEDIDOS EXPRESS PEDIDOSEXPRESS CIA LTDA"]
[null,null,null,null,null,null,null,null,null,null,null,null,null,null,null,null,null,null,null,null,null,"1791863259001","YOBEL LOGISTIC S.A."]
[null,null,null,null,null,null,null,null,null,null,null,null,null,null,null,null,null,null,null,null,null,"1290055950001","COOPERATIVA DE TRANSPORTE INTERPROVINCIAL DE PASAJEROS BUENA FE"]
[null,null,null,null,null,null,null,null,null,null,null,null,null,null,null,null,null,null,null,null,null,"1792970695001","COMPAÑÍA PANATLANTIC COURIER PNTCOURIER S.A."]
[null,null,null,null,null,null,null,null,null,null,null,null,null,null,null,null,null,null,null,null,null,"1600266884001","ALBERTO SIGIFREDO GUEVARA PINEDA"]
[null,null,null,null,null,null,null,null,null,null,null,null,null,null,null,null,null,null,null,null,null,"0992871164001","QUICK CARGO COURIER QUICARCOSA S.A."]
[null,null,null,null,null,null,null,null,null,null,null,null,null,null,null,null,null,null,null,null,null,"0992928751001","PAYD COURIER S.A. PAYDCOUR"]
[null,null,null,null,null,null,null,null,null,null,null,null,null,null,null,null,null,null,null,null,null,"0992705469001","STARCARGO CIA. LTDA."]
[null,null,null,null,null,null,null,null,null,null,null,null,null,null,null,null,null,null,null,null,null,"1102853494001","ALVAREZ CASTILLO VICENTE - LOJA CARGO EXPRESS"]
[null,null,null,null,null,null,null,null,null,null,null,null,null,null,null,null,null,null,null,null,null,"1793033660001","BRAGALLOGISTICS CIA.LTDA."]
[null,null,null,null,null,null,null,null,null,null,null,null,null,null,null,null,null,null,null,null,null,"0590059161001","COOPERATIVA DE TRANSPORTE DE PASAJEROS INTERPROVINCIAL COTOPAXI"]
[null,null,null,null,null,null,null,null,null,null,null,null,null,null,null,null,null,null,null,null,null,"1391916728001","AGEEPCOURIER ECUADOR S.A."]
[null,null,null,null,null,null,null,null,null,null,null,null,null,null,null,null,null,null,null,null,null,"0190492451001","STARCOURIER SERVICIO DE TRANSPORTE AÉREO RÁPIDO S.A.S."]
[null,null,null,null,null,null,null,null,null,null,null,null,null,null,null,null,null,null,null,null,null,"1792232929001","AERMARCOURIER CIA. LTDA."]
[null,null,null,null,null,null,null,null,null,null,null,null,null,null,null,null,null,null,null,null,null,"0990479100001","COOPERATIVA DE TRANSPORTE DE PASAJEROS EN BUSES POSORJA"]
[null,null,null,null,null,null,null,null,null,null,null,null,null,null,null,null,null,null,null,null,null,"1102993753001","PAQUI MINGA MANUEL RODRIGO"]
[null,null,null,null,null,null,null,null,null,null,null,null,null,null,null,null,null,null,null,null,null,"1793109896001","COURIER ALAIR S.A.S."]
[null,null,null,null,null,null,null,null,null,null,null,null,null,null,null,null,null,null,null,null,null,"1793108458001","SERVIBOX S.A.S."]
[null,null,null,null,null,null,null,null,null,null,null,null,null,null,null,null,null,null,null,null,null,"1790727203001","AVIANCA ECUADOR S.A."]
[null,null,null,null,null,null,null,null,null,null,null,null,null,null,null,null,null,null,null,null,null,"0993251151001","CONECTA-PACK S.A."]
[null,null,null,null,null,null,null,null,null,null,null,null,null,null,null,null,null,null,null,null,null,"1790819361001","EMPRESA PUBLICA SERVICIOS POSTALES DEL ECUADOR SPE EP"]
[null,null,null,null,null,null,null,null,null,null,null,null,null,null,null,null,null,null,null,null,null,"0102881281001","PUCHA CURILLO WILFRIDO "]
[null,null,null,null,null,null,null,null,null,null,null,null,null,null,null,null,null,null,null,null,null,"0401629944001","MARCELA ESTEFANÍA OVIEDO HERNÁNDEZ"]
[null,null,null,null,null,null,null,null,null,null,null,null,null,null,null,null,null,null,null,null,null,"1091781332001","INFINITY LOGISTICS INFINITYLOG CIA. LTDA."]
[null,null,null,null,null,null,null,null,null,null,null,null,null,null,null,null,null,null,null,null,null,"0993273562001","DAS WORLD LOGISTICS SERVICES SAVAEXPRESS S.A."]
[null,null,null,null,null,null,null,null,null,null,null,null,null,null,null,null,null,null,null,null,null,"1792595924001","BLUE EXPRESS COMPANY COURIERAGIL S.A."]
[null,null,null,null,null,null,null,null,null,null,null,null,null,null,null,null,null,null,null,null,null,"0993296376001","BM COURIER ENTREGASRAPIDAS S.A.S."]
[null,null,null,null,null,null,null,null,null,null,null,null,null,null,null,null,null,null,null,null,null,"1793097529001","COURIER EXPRESSBOX CARGO CÍA. LTDA."]
[null,null,null,null,null,null,null,null,null,null,null,null,null,null,null,null,null,null,null,null,null,"0993153958001","ALDO VIP CARGO ALDOVIPSA S.A."]
[null,null,null,null,null,null,null,null,null,null,null,null,null,null,null,null,null,null,null,null,null,"1711405801001","WILSON EFRAÍN BOLAGAY CAJAMARCA"]
[null,null,null,null,null,null,null,null,null,null,null,null,null,null,null,null,null,null,null,null,null,"0993089559001","LOIDIMP S.A."]
[null,null,null,null,null,null,null,null,null,null,null,null,null,null,null,null,null,null,null,null,null,"0991211837001","COMPAÑIA DE DESPACHOS Y ASESORIAS ADUANERAS CAL-VIMA C.LTDA"]
[null,null,null,null,null,null,null,null,null,null,null,null,null,null,null,null,null,null,null,null,null,"0691777987001","IRONBOUND COURIER CÍA. LTDA."]
[null,null,null,null,null,null,null,null,null,null,null,null,null,null,null,null,null,null,null,null,null,"1792031168001","AINAD DEL ECUADOR CÍA. LTDA."]
[null,null,null,null,null,null,null,null,null,null,null,null,null,null,null,null,null,null,null,null,null,"1793159230001","BB-LOGÍSTICA EXPRESS NACIONAL E INTERNACIONAL S.A.S."]
[null,null,null,null,null,null,null,null,null,null,null,null,null,null,null,null,null,null,null,null,null,"1793153224001","EBOX COURIER SERVICES CÍA. LTDA."]
[null,null,null,null,null,null,null,null,null,null,null,null,null,null,null,null,null,null,null,null,null,"0992675500001","TRANSGARCIA S.A."]
[null,null,null,null,null,null,null,null,null,null,null,null,null,null,null,null,null,null,null,null,null,"1793152074001","DKB LTD. SOCIEDAD POR ACCIONES SIMPLIFICADA"]
[null,null,null,null,null,null,null,null,null,null,null,null,null,null,null,null,null,null,null,null,null,"1091793144001","TAXI LAGOS COURIER. TAXICOURIER S.A."]
[null,null,null,null,null,null,null,null,null,null,null,null,null,null,null,null,null,null,null,null,null,"1793141676001","URGENTITOCOURIER S.A."]
[null,null,null,null,null,null,null,null,null,null,null,null,null,null,null,null,null,null,null,null,null,"0992565837001","FLETIMPEX ECUADOR S.A."]
[null,null,null,null,null,null,null,null,null,null,null,null,null,null,null,null,null,null,null,null,null,"0190376958001","ATENAS SHIPPING COMPANY ATESHIP CÍA. LTDA."]
[null,null,null,null,null,null,null,null,null,null,null,null,null,null,null,null,null,null,null,null,null,"0993349593001","POWERBOX S.A."]
[null,null,null,null,null,null,null,null,null,null,null,null,null,null,null,null,null,null,null,null,null,"1793167896001","CONDOR-PRIORITY COURIER S.A.S."]
[null,null,null,null,null,null,null,null,null,null,null,null,null,null,null,null,null,null,null,null,null,"1091791931001","COMPAÑÍA DE CARGA Y ENCOMIENDAS EXPRESSGOLDENCOMPANY S.A."]
[null,null,null,null,null,null,null,null,null,null,null,null,null,null,null,null,null,null,null,null,null,"0991107622001","COOPERATIVA DE TRANSPORTE DE PASAJEROS FLOTA SANTA MARTHA"]
[null,null,null,null,null,null,null,null,null,null,null,null,null,null,null,null,null,null,null,null,null,"1691728060001","TIGRE EXPRESS TIGREEXPRESS CÍA. LTDA."]
[null,null,null,null,null,null,null,null,null,null,null,null,null,null,null,null,null,null,null,null,null,"1792889596001","MUNDICOMEX CÍA. LTDA."]
[null,null,null,null,null,null,null,null,null,null,null,null,null,null,null,null,null,null,null,null,null,"1793143962001","CARGOSUREC S.A.S."]
[null,null,null,null,null,null,null,null,null,null,null,null,null,null,null,null,null,null,null,null,null,"0993346497001","JANCOURIER S.A.S."]
[null,null,null,null,null,null,null,null,null,null,null,null,null,null,null,null,null,null,null,null,null,"0993325201001","FAST COURIER AND LOGISTICS PADME S.A."]
[null,null,null,null,null,null,null,null,null,null,null,null,null,null,null,null,null,null,null,null,null,"1793066127001","OFFIBOY S.A."]
[null,null,null,null,null,null,null,null,null,null,null,null,null,null,null,null,null,null,null,null,null,"0993348430001","INTERGLOBAL-COURIER S.A.S."]
[null,null,null,null,null,null,null,null,null,null,null,null,null,null,null,null,null,null,null,null,null,"0993301345001","GLOBAL LOGISTICS INTERCARGO COURIER GLOINTER S.A."]
[null,null,null,null,null,null,null,null,null,null,null,null,null,null,null,null,null,null,null,null,null,"1793148565001","NORIAL ENVÍOS INC CÍA. LTDA."]
[null,null,null,null,null,null,null,null,null,null,null,null,null,null,null,null,null,null,null,null,null,"0993326410001","LOGISTICANEX S.A.S."]
[null,null,null,null,null,null,null,null,null,null,null,null,null,null,null,null,null,null,null,null,null,"0993321052001","RYM COURIER-ENTERPRISE S.A.S."]
[null,null,null,null,null,null,null,null,null,null,null,null,null,null,null,null,null,null,null,null,null,"0992306033001","ZAI CARGO EU S.A."]
[null,null,null,null,null,null,null,null,null,null,null,null,null,null,null,null,null,null,null,null,null,"1792636302001","SÁNCHEZ VINUEZA COMERCIO EXTERIOR SAVINCOMEX CÍA. LTDA."]
[null,null,null,null,null,null,null,null,null,null,null,null,null,null,null,null,null,null,null,null,null,"0190093425001","EJECUTIVO SAN LUIS DE TRANSPORTES S.A."]
[null,null,null,null,null,null,null,null,null,null,null,null,null,null,null,null,null,null,null,null,null,"1793175740001","ANETAEXPRESS S.A.S."]
[null,null,null,null,null,null,null,null,null,null,null,null,null,null,null,null,null,null,null,null,null,"1793182321001","ECUDELTA EXPRESS CÍA. LTDA."]
[null,null,null,null,null,null,null,null,null,null,null,null,null,null,null,null,null,null,null,null,null,"0190479250001","CUENCAEXPRESS ENCOMIENDAS SERVIENVIOS S.A. "]
[null,null,null,null,null,null,null,null,null,null,null,null,null,null,null,null,null,null,null,null,null,"0991063021001","COOPERATIVA INTERPROVINCIAL DE TRANSPORTE MANGLARALTO"]
[null,null,null,null,null,null,null,null,null,null,null,null,null,null,null,null,null,null,null,null,null,"1191790010001","RAPIFAS COURIER CÍA. LTDA."]
[null,null,null,null,null,null,null,null,null,null,null,null,null,null,null,null,null,null,null,null,null,"0590059471001","COOPERATIVA DE TRANSPORTE SALCEDO"]
[null,null,null,null,null,null,null,null,null,null,null,null,null,null,null,null,null,null,null,null,null,"1793158110001","PLUSCOURIER S.A.S."]
[null,null,null,null,null,null,null,null,null,null,null,null,null,null,null,null,null,null,null,null,null,"1291723833001","COOPERATIVA DE TRANSPORTE INTERPROVINCIAL DE PASAJEROS EN BUSES SANTA ELISA"]
[null,null,null,null,null,null,null,null,null,null,null,null,null,null,null,null,null,null,null,null,null,"1290028287001","COOPERATIVA INTERPROVINCIAL DE TRANSPORTE VALENCIA"]
[null,null,null,null,null,null,null,null,null,null,null,null,null,null,null,null,null,null,null,null,null,"0993361119001","PROCOURIER S.A. "]
[null,null,null,null,null,null,null,null,null,null,null,null,null,null,null,null,null,null,null,null,null,"1792755972001","ASOCIACIÓN DE SERVICIOS DE MENSAJERÍA CHASQUIS SECURITY & EXPRESS ASOSERMECONSER"]
[null,null,null,null,null,null,null,null,null,null,null,null,null,null,null,null,null,null,null,null,null,"0993348171001","BLUEXPRESS S.A.S."]
[null,null,null,null,null,null,null,null,null,null,null,null,null,null,null,null,null,null,null,null,null,"0102419827001","JOHN CÉSAR CASTILLO ASTUDILLO"]
[null,null,null,null,null,null,null,null,null,null,null,null,null,null,null,null,null,null,null,null,null,"0992424311001","MARITIME SERVICES LINE DEL ECUADOR MSL DEL ECUADOR S.A."]
[null,null,null,null,null,null,null,null,null,null,null,null,null,null,null,null,null,null,null,null,null,"1724906340001","OTERO GARCÍA MERY RUTH"]
[null,null,null,null,null,null,null,null,null,null,null,null,null,null,null,null,null,null,null,null,null,"0993350087001","SOLUCARGO COURIER S.A."]
[null,null,null,null,null,null,null,null,null,null,null,null,null,null,null,null,null,null,null,null,null,"0993197785001","IFL LOGÍSTICA INTEGRAL S.A."]
[null,null,null,null,null,null,null,null,null,null,null,null,null,null,null,null,null,null,null,null,null,"0992450479001","ULTRABOX S.A."]
[null,null,null,null,null,null,null,null,null,null,null,null,null,null,null,null,null,null,null,null,null,"0991414649001","SURTAX S.A."]
[null,null,null,null,null,null,null,null,null,null,null,null,null,null,null,null,null,null,null,null,null,"1793167004001","LADEC COURIER S.A."]
[null,null,null,null,null,null,null,null,null,null,null,null,null,null,null,null,null,null,null,null,null,"0993367841001","LATIN EXPRESS LATINEXPRESS S.A."]
[null,null,null,null,null,null,null,null,null,null,null,null,null,null,null,null,null,null,null,null,null,"1391931861001","VIAEXPRESS S.A."]
[null,null,null,null,null,null,null,null,null,null,null,null,null,null,null,null,null,null,null,null,null,"1990927134001","CORREOS EXPRESS COREXPRESS S.A.S."]
[null,null,null,null,null,null,null,null,null,null,null,null,null,null,null,null,null,null,null,null,null,"1003996467001","MUENALA ALTA JAVIER PATRICIO"]
[null,null,null,null,null,null,null,null,null,null,null,null,null,null,null,null,null,null,null,null,null,"1790021262001","EMPRESA NACIONAL ECUATORIANA DE TRANSPORTES S.A. ENETSA"]
[null,null,null,null,null,null,null,null,null,null,null,null,null,null,null,null,null,null,null,null,null,"1793193247001","IMPULSA TELCOM S.A.S."]
[null,null,null,null,null,null,null,null,null,null,null,null,null,null,null,null,null,null,null,null,null,"0993288594001","CAJAEXPRESS-COURIER S.A."]
[null,null,null,null,null,null,null,null,null,null,null,null,null,null,null,null,null,null,null,null,null,"1792545838001","ENTREGAS Y CONSOLIDACIÓN ENSPECON S.A."]
[null,null,null,null,null,null,null,null,null,null,null,null,null,null,null,null,null,null,null,null,null,"1793072062001","MERX LOGISTICS SERVICES MERXLOGSERVICES CÍA. LTDA."]
[null,null,null,null,null,null,null,null,null,null,null,null,null,null,null,null,null,null,null,null,null,"1793160727001","SERVICIOS EXPRESOS ECUADOR SEECU S.A.S."]
[null,null,null,null,null,null,null,null,null,null,null,null,null,null,null,null,null,null,null,null,null,"0190508625001","SURCOURIER S.A."]
[null,null,null,null,null,null,null,null,null,null,null,null,null,null,null,null,null,null,null,null,null,"1793161529001","ORANGEEXPS GLOBAL S.A.S."]
[null,null,null,null,null,null,null,null,null,null,null,null,null,null,null,null,null,null,null,null,null,"0993370434001","ALM XPRESS COURIER S.A.S."]
[null,null,null,null,null,null,null,null,null,null,null,null,null,null,null,null,null,null,null,null,null,"1793190809001","ITSACOURIER S.A.S."]
[null,null,null,null,null,null,null,null,null,null,null,null,null,null,null,null,null,null,null,null,null,"0993348961001","ONESTOP CÍA. LTDA."]
[null,null,null,null,null,null,null,null,null,null,null,null,null,null,null,null,null,null,null,null,null,"0990137331001","NAVECUADOR S.A."]
[null,null,null,null,null,null,null,null,null,null,null,null,null,null,null,null,null,null,null,null,null,"0992721065001","RAPIDMAIL S.A."]
[null,null,null,null,null,null,null,null,null,null,null,null,null,null,null,null,null,null,null,null,null,"0993369591001","BOXCARGO EXPRESS S.A."]
[null,null,null,null,null,null,null,null,null,null,null,null,null,null,null,null,null,null,null,null,null,"0993355909001","AGN-EXPRESS S.A.S."]
[null,null,null,null,null,null,null,null,null,null,null,null,null,null,null,null,null,null,null,null,null,"1793191892001","ENCOMIENDAS MB CÍA. LTDA."]
[null,null,null,null,null,null,null,null,null,null,null,null,null,null,null,null,null,null,null,null,null,"0290016088001","COOPERATIVA DE TRANSPORTE FLOTA BOLÍVAR"]
[null,null,null,null,null,null,null,null,null,null,null,null,null,null,null,null,null,null,null,null,null,"0930127196001","CHIQUITO CHILAN JENNIFFER KATHERINE"]
[null,null,null,null,null,null,null,null,null,null,null,null,null,null,null,null,null,null,null,null,null,"0702457250001","PINTA GODOY JUAN CARLOS"]
[null,null,null,null,null,null,null,null,null,null,null,null,null,null,null,null,null,null,null,null,null,"1792613086001","COMPAÑIA DE TRANSPORTE LOGISTCS SA"]
[null,null,null,null,null,null,null,null,null,null,null,null,null,null,null,null,null,null,null,null,null,"1725915100001","VÁSQUEZ BETANCOURT VÍCTOR HUGO"]
[null,null,null,null,null,null,null,null,null,null,null,null,null,null,null,null,null,null,null,null,null,"1793144497001","TRANS ECUACARGA EXPRESS COURIER-&-LOGISTICS S.A."]
[null,null,null,null,null,null,null,null,null,null,null,null,null,null,null,null,null,null,null,null,null,"0992872802001","DROMO S.A."]
[null,null,null,null,null,null,null,null,null,null,null,null,null,null,null,null,null,null,null,null,null,"0993369881001","LOGÍSTICA SEGURA S.A.S."]
[null,null,null,null,null,null,null,null,null,null,null,null,null,null,null,null,null,null,null,null,null,"0691784536001","RIOGO S.A.S."]
[null,null,null,null,null,null,null,null,null,null,null,null,null,null,null,null,null,null,null,null,null,"0992773847001","ALKEANSE EXPRESS S.A."]
[null,null,null,null,null,null,null,null,null,null,null,null,null,null,null,null,null,null,null,null,null,"1793196259001","IMPEX AIRLINES S.A.S."]
[null,null,null,null,null,null,null,null,null,null,null,null,null,null,null,null,null,null,null,null,null,"1091789023001","SERVICIOS: ENCOMIENDAS & MENSAJERÍA SERVILUIGI-EXPRESS S.A."]
[null,null,null,null,null,null,null,null,null,null,null,null,null,null,null,null,null,null,null,null,null,"0190498743001","LOGISTICSCAM CÍA. LTDA."]
[null,null,null,null,null,null,null,null,null,null,null,null,null,null,null,null,null,null,null,null,null,"0993256803001","OPERADOR LOGISTICO DE CARGA OLCEXPRESS S.A."]
[null,null,null,null,null,null,null,null,null,null,null,null,null,null,null,null,null,null,null,null,null,"1091796739001","JET MESSENGER S.A.S."]
[null,null,null,null,null,null,null,null,null,null,null,null,null,null,null,null,null,null,null,null,null,"0195102139001","CLICKBOX S.A.S."]
[null,null,null,null,null,null,null,null,null,null,null,null,null,null,null,null,null,null,null,null,null,"1793198539001","PRIME-BOX ECUADOR S.A.S."]
[null,null,null,null,null,null,null,null,null,null,null,null,null,null,null,null,null,null,null,null,null,"1793196199001","USAGLOBALMARKET COURIER S.A.S."]
[null,null,null,null,null,null,null,null,null,null,null,null,null,null,null,null,null,null,null,null,null,"1708713860001","NUÑEZ BURBANO DIEGO HERNAN"]
[null,null,null,null,null,null,null,null,null,null,null,null,null,null,null,null,null,null,null,null,null,"2190000551001","COOPERATIVA DE TRANSPORTE DE PASAJEROS EN RANCHERAS PETROLERA SHUSHUFINDI"]
[null,null,null,null,null,null,null,null,null,null,null,null,null,null,null,null,null,null,null,null,null,"1290044673001","COOPERATIVA INTERPROVINCIAL DE TRANSPORTES FLOTA BOLIVAR"]
[null,null,null,null,null,null,null,null,null,null,null,null,null,null,null,null,null,null,null,null,null,"1793198565001","ACA EXPRESS ACAEX CÍA. LTDA."]
[null,null,null,null,null,null,null,null,null,null,null,null,null,null,null,null,null,null,null,null,null,"1792698723001","PAEZ BALSECA ROMERO CUSTOMS & CARGO SERVICES PBRCUSTOMS CÍA. LTDA."]
[null,null,null,null,null,null,null,null,null,null,null,null,null,null,null,null,null,null,null,null,null,"1313254979001","ALAVA GILER ROQUE DAVID"]
[null,null,null,null,null,null,null,null,null,null,null,null,null,null,null,null,null,null,null,null,null,"0993370698001","JHVCOURIER GUAYAQUIL S.A.S."]
[null,null,null,null,null,null,null,null,null,null,null,null,null,null,null,null,null,null,null,null,null,"1793198866001","CPM-COURIER S.A.S"]
[null,null,null,null,null,null,null,null,null,null,null,null,null,null,null,null,null,null,null,null,null,"1290031571001","COOPERATIVA INTERPROVINCIAL DE TRANSPORTES ESPEJO"]
[null,null,null,null,null,null,null,null,null,null,null,null,null,null,null,null,null,null,null,null,null,"1793199841001","CARGOPAKET S.A.S."]
[null,null,null,null,null,null,null,null,null,null,null,null,null,null,null,null,null,null,null,null,null,"0195111766001","EURODIRECTO S.A.S."]
[null,null,null,null,null,null,null,null,null,null,null,null,null,null,null,null,null,null,null,null,null,"1290044479001","COOPERATIVA DE TRASPORTE INTERPROVINCIAL DE PASAJEROS QUEVEDO"]
[null,null,null,null,null,null,null,null,null,null,null,null,null,null,null,null,null,null,null,null,null,"1792990882001","MOVE FORWARD ECUADOR MFE S.A."]
[null,null,null,null,null,null,null,null,null,null,null,null,null,null,null,null,null,null,null,null,null,"0993341649001","UPPER LOGISTICS UPPERLOG S.A."]
[null,null,null,null,null,null,null,null,null,null,null,null,null,null,null,null,null,null,null,null,null,"1691727862001","SAN PANCHITOEXPRESS S.A."]
[null,null,null,null,null,null,null,null,null,null,null,null,null,null,null,null,null,null,null,null,null,"1793201655001","SICOMEXEXPRESS CÍA. LTDA."]
[null,null,null,null,null,null,null,null,null,null,null,null,null,null,null,null,null,null,null,null,null,"0993379407001","ALLTRANS COURIER S.A."]
[null,null,null,null,null,null,null,null,null,null,null,null,null,null,null,null,null,null,null,null,null,"0990341192001","COOPERATIVA DE\nTRANSPORTE INTERPROVINCIAL COSTA AZUL C.I.C.A."]
[null,null,null,null,null,null,null,null,null,null,null,null,null,null,null,null,null,null,null,null,null,"1793203345001","ALI-BOX S.A.S."]
[null,null,null,null,null,null,null,null,null,null,null,null,null,null,null,null,null,null,null,null,null,"1890085462001","COOPERATIVA DE TRANSPORTES EL DORADO"]
[null,null,null,null,null,null,null,null,null,null,null,null,null,null,null,null,null,null,null,null,null,"0195117802001","CUENCANITO EXPRESS COURIER &\nCARGO LOGISTIC S.A.S."]
[null,null,null,null,null,null,null,null,null,null,null,null,null,null,null,null,null,null,null,null,null,"0993380103001","MB SEVERAL EXPRESS S.A."]
[null,null,null,null,null,null,null,null,null,null,null,null,null,null,null,null,null,null,null,null,null,"0195091791001","AGENCIA OPERAZUAYCARGO S.A.S."]
[null,null,null,null,null,null,null,null,null,null,null,null,null,null,null,null,null,null,null,null,null,"0992143738001","ADFER SOLUTIONS EXPRESS S.A."]
[null,null,null,null,null,null,null,null,null,null,null,null,null,null,null,null,null,null,null,null,null,"0993382354001","ECUZONEBOX S.A.S."]
[null,null,null,null,null,null,null,null,null,null,null,null,null,null,null,null,null,null,null,null,null,"1793204089001","ICARGO - INTERNATIONALCARGO S.A.S."]
[null,null,null,null,null,null,null,null,null,null,null,null,null,null,null,null,null,null,null,null,null,"1291790073001","TDU CARGO S.A."]
[null,null,null,null,null,null,null,null,null,null,null,null,null,null,null,null,null,null,null,null,null,"1793204473001","EQUALATIN S.A.S."]
[null,null,null,null,null,null,null,null,null,null,null,null,null,null,null,null,null,null,null,null,null,"1793206204001","CONTSOLSER ECUADOR S.A."]
[null,null,null,null,null,null,null,null,null,null,null,null,null,null,null,null,null,null,null,null,null,"0993378064001","VASEDA EXPRESS CIA. LTDA."]
[null,null,null,null,null,null,null,null,null,null,null,null,null,null,null,null,null,null,null,null,null,"0195123381001","YEGATI S.A.S."]
[null,null,null,null,null,null,null,null,null,null,null,null,null,null,null,null,null,null,null,null,null,"1091781472001","AGILENVIOS S.A."]
[null,null,null,null,null,null,null,null,null,null,null,null,null,null,null,null,null,null,null,null,null,"1793208710001","CORAEXPRESS COURIER S.A."]
[null,null,null,null,null,null,null,null,null,null,null,null,null,null,null,null,null,null,null,null,null,"1390113974001","COOPERATIVA DE TRANSPORTE INTRAPROVINCIAL DE PASAJEROS VUELTA LARGA"]
[null,null,null,null,null,null,null,null,null,null,null,null,null,null,null,null,null,null,null,null,null,"1091796198001","INMEDIATOEXPRESS S.A."]
[null,null,null,null,null,null,null,null,null,null,null,null,null,null,null,null,null,null,null,null,null,"0302152335001","CATALINA PAOLA GAVILANES PEÑAFIEL"]
[null,null,null,null,null,null,null,null,null,null,null,null,null,null,null,null,null,null,null,null,null,"1790281795001","EXPRESS ATENAS S.A."]
[null,null,null,null,null,null,null,null,null,null,null,null,null,null,null,null,null,null,null,null,null,"0993383171001","FARLETZA-COURIER S.A."]
[null,null,null,null,null,null,null,null,null,null,null,null,null,null,null,null,null,null,null,null,null,"1793118410001","GINTRACOM S.A.S"]
[null,null,null,null,null,null,null,null,null,null,null,null,null,null,null,null,null,null,null,null,null,"0993380090001","XPRESS LOGISTICS XPS S.A."]
[null,null,null,null,null,null,null,null,null,null,null,null,null,null,null,null,null,null,null,null,null,"0993367381001","VIP MAILSBOXX S.A.S."]
[null,null,null,null,null,null,null,null,null,null,null,null,null,null,null,null,null,null,null,null,null,"1390097227001","COOPERATIVA DE TRANSPORTE MANABÍ"]
[null,null,null,null,null,null,null,null,null,null,null,null,null,null,null,null,null,null,null,null,null,"0993385823001","FULLCOURIER S.A."]
[null,null,null,null,null,null,null,null,null,null,null,null,null,null,null,null,null,null,null,null,null,"1793212225001","HLP S.A.S."]
[null,null,null,null,null,null,null,null,null,null,null,null,null,null,null,null,null,null,null,null,null,"1793210235001","SANTANI EXPRESS LOGISTICA  INTEGRAL SANTANIEX S.A."]
[null,null,null,null,null,null,null,null,null,null,null,null,null,null,null,null,null,null,null,null,null,"0993373214001","TRAVEL & COURIER KALEL TCK S.A.S"]
[null,null,null,null,null,null,null,null,null,null,null,null,null,null,null,null,null,null,null,null,null,"0993383933001","JIMMY’S CARGO DVA JIMMY’S- TRAVEL S.A."]
[null,null,null,null,null,null,null,null,null,null,null,null,null,null,null,null,null,null,null,null,null,"1793206639001","SNAPEXPRESS S.A.S."]
[null,null,null,null,null,null,null,null,null,null,null,null,null,null,null,null,null,null,null,null,null,"1890006791001","COOPERATIVA DE TRANSPORTES PESADOS LOS ANDES"]
[null,null,null,null,null,null,null,null,null,null,null,null,null,null,null,null,null,null,null,null,null,"0195129551001","KUY SOCIEDAD POR ACCIONES SIMPLIFICADA"]
[null,null,null,null,null,null,null,null,null,null,null,null,null,null,null,null,null,null,null,null,null,"0993279110001","POONY EXPRESS S.A."]
[null,null,null,null,null,null,null,null,null,null,null,null,null,null,null,null,null,null,null,null,null,"1091790862001","DOMICIFLORES EXPRESS S.A.S."]
[null,null,null,null,null,null,null,null,null,null,null,null,null,null,null,null,null,null,null,null,null,"1793196564001","ERATRADING S.A.S."]
[null,null,null,null,null,null,null,null,null,null,null,null,null,null,null,null,null,null,null,null,null,"0993193089001","AMAZONAS CARGO MASTER AMACARGO S.A"]
[null,null,null,null,null,null,null,null,null,null,null,null,null,null,null,null,null,null,null,null,null,"1793212415001","KAZAN EXPRESS CARGO KEC CIA. LTDA."]
[null,null,null,null,null,null,null,null,null,null,null,null,null,null,null,null,null,null,null,null,null,"0993371664001","GARLOGISTICS S.A.S."]
[null,null,null,null,null,null,null,null,null,null,null,null,null,null,null,null,null,null,null,null,null,"0993380181001","SENIBOX S.A."]
[null,null,null,null,null,null,null,null,null,null,null,null,null,null,null,null,null,null,null,null,null,"1793213972001","SMARTTRADECOURIER S.A.S."]
[null,null,null,null,null,null,null,null,null,null,null,null,null,null,null,null,null,null,null,null,null,"1722681135001","SOLIS TORRES ROLANDO ABDON"]
[null,null,null,null,null,null,null,null,null,null,null,null,null,null,null,null,null,null,null,null,null,"0690074346001","COOPERATIVA DE TRANSPORTE DE PASAJEROS DE BUSES CHUNCHI"]
[null,null,null,null,null,null,null,null,null,null,null,null,null,null,null,null,null,null,null,null,null,"0195098816001","DEPUNTOAPUNTO S.A.S."]
[null,null,null,null,null,null,null,null,null,null,null,null,null,null,null,null,null,null,null,null,null,"1290038428001","COOPERATIVA DE TRANSPORTES VENTANAS"]
[null,null,null,null,null,null,null,null,null,null,null,null,null,null,null,null,null,null,null,null,null,"1793097561001","IMPORTADORA COMERCIAL VIVA VIVAIMP CIA. LTDA"]
[null,null,null,null,null,null,null,null,null,null,null,null,null,null,null,null,null,null,null,null,null,"1793207936001","ALLAHONA PARCEL CONNECT – APCOURIER – CIA. LTDA."]
[null,null,null,null,null,null,null,null,null,null,null,null,null,null,null,null,null,null,null,null,null,"0993141089001","SERVICIOS LOGISTICOS DE MOLTA DEMOLTA S.A"]
[null,null,null,null,null,null,null,null,null,null,null,null,null,null,null,null,null,null,null,null,null,"0993370358001","ECUADELIVERY S.A."]
[null,null,null,null,null,null,null,null,null,null,null,null,null,null,null,null,null,null,null,null,null,"1791952499001","EFIRAP CARGO EXPRESS C.A."]
[null,null,null,null,null,null,null,null,null,null,null,null,null,null,null,null,null,null,null,null,null,"0590059277001","COOPERATIVA DE TRANSPORTE INTERPROVINCIAL DE PASAJEROS EN BUSES PRIMAVERA"]
[null,null,null,null,null,null,null,null,null,null,null,null,null,null,null,null,null,null,null,null,null,"0993374931001","ENCUAENVIOS ECUAWORLD COURIER S.A.S."]
[null,null,null,null,null,null,null,null,null,null,null,null,null,null,null,null,null,null,null,null,null,"1790472078001","TRANSPORTES SAN JOSE DE MINAS S.A"]
[null,null,null,null,null,null,null,null,null,null,null,null,null,null,null,null,null,null,null,null,null,"1793198428001","EFFICOMMERCE S.A.S."]
[null,null,null,null,null,null,null,null,null,null,null,null,null,null,null,null,null,null,null,null,null,"0190505294001","INFO-AZUAYTOUR S.A.S."]
[null,null,null,null,null,null,null,null,null,null,null,null,null,null,null,null,null,null,null,null,null,"0993388988001","KMCARGO EXPRESS S.A.S"]
[null,null,null,null,null,null,null,null,null,null,null,null,null,null,null,null,null,null,null,null,null,"0791843463001","ENTREGAREC S.A."]
[null,null,null,null,null,null,null,null,null,null,null,null,null,null,null,null,null,null,null,null,null,"1793216693001","INTERNATIONAL COURIER SERVICE INTCS CIA. LTDA."]

{"sheet":"Hoja1","index":1,"n_rows":22,"n_cols":6,"rows_kept":22,"cut":false,"hidden":true,"merged":[[5,1,5,5],[6,1,6,4],[8,1,8,4],[17,1,17,4],[18,1,18,4]]}
[]
[]
[]
[]
[]
[2024,"Cálculo de Interés al 22/01/2024"]
["III Trimestre","Valor notificado =",null,null,null,{"$f":"TXTBASECONTRIBUCION","v":0}]
[]
[null,"Detalle de interés"]
[null,"2024-10-23","2024-11-22",9.7300000000000008E-3,{"$f":"ROUND($F$7*D10,2)","v":0}]
[null,"2024-11-23","2024-12-22",9.7300000000000008E-3,0]
[null,"2024-12-23","2025-01-22",9.7300000000000008E-3,0]
[null,"2025-01-23","2025-02-22",8.6899999999999998E-3,0]
[null,"2025-02-23","2025-03-22",8.6899999999999998E-3,0]
[null,"2025-03-23","2025-04-22",8.6899999999999998E-3,0]
[null,"2025-04-23","2025-05-22",7.1199999999999996E-3,{"$f":"ROUND($F$7*D16,2)","v":0}]
[null,"2025-05-23","2025-06-22",7.1199999999999996E-3,0]
[null,"Interés =",null,null,null,{"$f":"SUM(E10:E17)","v":0}]
[null,"Total a pagar =",null,null,null,{"$f":"F7+F18","v":0}]
[null,"Fecha: 23/5/2025"]
[null,"Elab. por: VL"]
[null,"Rev. Por: MR"]